[Event "Ceske Budejovice Open-A 2019"]
[Site "Ceske Budejovice"]
[Date "2019.07.02"]
[Round "4.25"]
[White "Lauko, Marian"]
[Black "Solovyova, Anastasia"]
[Result "0-1"]
[ECO "A80"]
[WhiteElo "1817"]
[BlackElo "1835"]
[Annotator "NA"]
[PlyCount "52"]
[EventDate "2019.07.02"]
[EventCountry "CZE"]
[SourceTitle "playchess.com"]
[Source "ChessBase"]
[SourceQuality "1"]
[TimeControl "5400+30"]

1. d4 {[%emt 0:00:33]} f5 {[%emt 0:00:00]} 2. Nf3 {[%emt 0:00:29]} Nf6 {[%emt 0:00:38]} 3. e3 {[%emt 0:00:14]} g6 {[%emt 0:01:04]} 4. c4 {[%emt 0:01:02]} Bg7 {[%emt 0:02:14]} 5. Nc3 {[%emt 0:00:02]} d6 {[%emt 0:02:07]} 6. g3 {[%emt 0:00:45]} O-O {[%emt 0:02:52]} 7. Bg2 {[%emt 0:00:02]} c6 {[%emt 0:02:44]} 8. O-O {[%emt 0:00:09]} Qe8 {[%emt 0:02:49]} 9. c5 {[%emt 0:02:46]} dxc5 {[%emt 0:11:03]} 10. dxc5 {[%emt 0:02:50]} e5 {[%emt 0:01:09]} 11. b4 {[%emt 0:01:15]} a5 {[%emt 0:11:14]} 12. Na4 {[%emt 0:08:59]} e4 {[%emt 0:12:54]} 13. Nd4 {[%emt 0:00:34]} Nd5 {[%emt 0:00:23]} 14. Nb6 {[%emt 0:05:44]} Nxb6 {[%emt 0:03:29]} 15. cxb6 {[%emt 0:00:27]} axb4 {[%emt 0:00:21]} 16. Qb3+ {[%emt 0:00:28]} Qf7 {[%emt 0:02:31]} 17. Qxb4 {[%emt 0:01:32]} Na6 {[%emt 0:00:35]} 18. Qd6 {[%emt 0:05:07]} c5 {[%emt 0:00:55]} 19. Nb3 {[%emt 0:04:38]} Bxa1 {[%emt 0:00:08]} 20. Nxa1 {[%emt 0:00:05]} Qf6 {[%emt 0:00:53]} 21. Qd5+ {[%emt 0:01:34]} Be6 {[%emt 0:01:23]} 22. Qd2 {[%emt 0:00:50]} Rad8 {[%emt 0:10:54]} 23. Qc2 {[%emt 0:02:08]} Nb4 {[%emt 0:03:10]} 24. Qxc5 {[%emt 0:01:33]} Nd3 {[%emt 0:00:10]} 25. Qc2 {[%emt 0:12:45]} Qxa1 {[%emt 0:01:06]} 26. Ba3 {[%emt 0:00:39]} Qxa2 {[%emt 0:01:50]} 0-1

[Event "Ceske Budejovice Open-A 2019"]
[Site "Ceske Budejovice"]
[Date "2019.07.03"]
[Round "5.2"]
[White "Barrish, Daniel"]
[Black "Mirzoev, Azer"]
[Result "0-1"]
[ECO "D30"]
[WhiteElo "2237"]
[BlackElo "2474"]
[Annotator "ChessBase"]
[PlyCount "70"]
[EventDate "2019.07.02"]
[EventCountry "CZE"]
[SourceTitle "playchess.com"]
[Source "ChessBase"]
[SourceQuality "1"]
[TimeControl "5400+30"]

1. d4 {[%emt 0:00:00]} d5 {[%emt 0:00:36]} 2. c4 {[%emt 0:00:00]} e6 {[%emt 0:00:03]} 3. Nf3 {[%emt 0:00:00]} a6 {[%emt 0:00:07]} 4. e3 {[%emt 0:08:36]} Nf6 {[%emt 0:00:08]} 5. b3 {[%emt 0:02:15]} c5 {[%emt 0:00:29]} 6. Bb2 {[%emt 0:02:58]} cxd4 {[%emt 0:00:16]} 7. Nxd4 {[%emt 0:05:59]} Bb4+ {[%emt 0:00:23]} 8. Bc3 {[%emt 0:02:15]} Bd6 {[%emt 0:00:06]} 9. Nf3 {[%emt 0:05:01]} O-O {[%emt 0:04:25]} 10. Nbd2 {[%emt 0:00:27]} Nc6 {[%emt 0:02:00]} 11. Be2 {[%emt 0:01:20]} e5 {[%emt 0:02:49]} 12. cxd5 {[%emt 0:03:13]} Nxd5 {[%emt 0:00:08]} 13. Bb2 {[%emt 0:13:24]} Re8 {[%emt 0:01:11]} 14. e4 {[%emt 0:03:37]} Nf4 {[%emt 0:01:16]} 15. O-O {[%emt 0:00:11]} Bg4 {[%emt 0:01:05]} 16. Nc4 {[%emt 0:05:37]} Bc5 {[%emt 0:01:22]} 17. Ne3 {[%emt 0:12:55]} Bxe3 {[%emt 0:06:08]} 18. fxe3 {[%emt 0:00:04]} Qb6 {[%emt 0:00:11]} 19. Bc1 {[%emt 0:03:35]} Rad8 {[%emt 0:01:31]} 20. Qe1 {[%emt 0:00:05]} Nb4 {[%emt 0:16:21]} 21. Qf2 {[%emt 0:00:04]} Nbd3 {[%emt 0:01:28]} 22. Bxd3 {[%emt 0:00:14]} Nxd3 {[%emt 0:00:04]} 23. Qg3 {[%emt 0:01:45]} Nxc1 {[%emt 0:07:19]} 24. Raxc1 {[%emt 0:00:03]} Qxe3+ {[%emt 0:00:10]} 25. Kh1 {[%emt 0:00:22]} Qf4 {[%emt 0:02:33]} 26. Qe1 {[%emt 0:03:22]} Rd3 {[%emt 0:09:15]} 27. Rc3 {[%emt 0:06:04]} Rxc3 {[%emt 0:03:28]} 28. Qxc3 {[%emt 0:00:03]} h6 {[%emt 0:06:46]} 29. Nd2 {[%emt 0:04:22]} Qg5 {[%emt 0:00:13]} 30. h3 {[%emt 0:01:00]} Rc8 {[%emt 0:01:32]} 31. Nc4 {[%emt 0:04:26]} Be6 {[%emt 0:01:26]} 32. Qb4 {[%emt 0:03:55]} b5 {[%emt 0:00:37]} 33. Na3 {[%emt 0:02:04]} Rd8 {[%emt 0:02:23]} 34. Nb1 {[%emt 0:03:30]} Rd3 {[%emt 0:01:25]} 35. Kh2 {[%emt 0:02:36]} Qg3+ {[%emt 0:02:04]} 0-1

[Event "Ceske Budejovice Open-A 2019"]
[Site "Ceske Budejovice"]
[Date "2019.07.03"]
[Round "5.4"]
[White "Richterova, Natasa"]
[Black "Voloshin, Leonid"]
[Result "1/2-1/2"]
[ECO "B08"]
[WhiteElo "2179"]
[BlackElo "2376"]
[Annotator "NA"]
[PlyCount "46"]
[EventDate "2019.07.02"]
[EventCountry "CZE"]
[SourceTitle "playchess.com"]
[Source "ChessBase"]
[SourceQuality "1"]
[TimeControl "5400+30"]

1. e4 {[%emt 0:00:00]} d6 {[%emt 0:00:00]} 2. d4 {[%emt 0:00:00]} Nf6 {[%emt 0:00:00]} 3. Nc3 {[%emt 0:00:03]} g6 {[%emt 0:00:00]} 4. h3 {[%emt 0:05:28]} Bg7 {[%emt 0:00:53]} 5. Nf3 {[%emt 0:00:15]} O-O {[%emt 0:00:39]} 6. Bc4 {[%emt 0:12:35]} c6 {[%emt 0:05:12]} 7. a4 {[%emt 0:02:09]} d5 {[%emt 0:13:58]} 8. Bd3 {[%emt 0:10:37]} dxe4 {[%emt 0:03:55]} 9. Nxe4 {[%emt 0:00:58]} Nxe4 {[%emt 0:01:31]} 10. Bxe4 {[%emt 0:00:10]} c5 {[%emt 0:17:26]} 11. dxc5 {[%emt 0:21:17]} Qa5+ {[%emt 0:02:04]} 12. Qd2 {[%emt 0:05:21]} Qxc5 {[%emt 0:01:11]} 13. O-O {[%emt 0:00:07]} Qc7 {[%emt 0:03:49]} 14. c3 {[%emt 0:02:25]} Nd7 {[%emt 0:02:41]} 15. Qe2 {[%emt 0:04:27]} Nc5 {[%emt 0:05:21]} 16. Bc2 {[%emt 0:00:10]} e5 {[%emt 0:03:15]} 17. Re1 {[%emt 0:05:42]} f6 {[%emt 0:06:05]} 18. Be3 {[%emt 0:05:27]} Be6 {[%emt 0:04:35]} 19. Qb5 {[%emt 0:00:24]} Na6 {[%emt 0:05:44]} 20. Bb3 {[%emt 0:03:44]} Bxb3 {[%emt 0:00:49]} 21. Qxb3+ {[%emt 0:03:34]} Qf7 {[%emt 0:08:59]} 22. Qb5 {[%emt 0:02:31]} Nb8 {[%emt 0:02:59]} 23. Nd2 {[%emt 0:06:22]} Rd8 {[%emt 0:05:14]} 1/2-1/2

[Event "Ceske Budejovice Open-A 2019"]
[Site "Ceske Budejovice"]
[Date "2019.07.03"]
[Round "5.5"]
[White "Velicka, Petr"]
[Black "Glimbrant, Torbjorn"]
[Result "1-0"]
[ECO "C75"]
[WhiteElo "2428"]
[BlackElo "2195"]
[Annotator "NA RC"]
[PlyCount "79"]
[EventDate "2019.07.02"]
[EventCountry "CZE"]
[SourceTitle "playchess.com"]
[Source "ChessBase"]
[SourceQuality "1"]
[TimeControl "5400+30"]

1. e4 {[%emt 0:00:00]} e5 {[%emt 0:00:00]} 2. Nf3 {[%emt 0:00:30]} Nc6 {[%emt 0:00:00]} 3. Bb5 {[%emt 0:00:03]} a6 {[%emt 0:00:01]} 4. Ba4 {[%emt 0:00:04]} d6 {[%emt 0:00:37]} 5. c3 {[%emt 0:01:11]} Bd7 {[%emt 0:00:24]} 6. O-O {[%emt 0:00:25]} Nge7 {[%emt 0:00:35]} 7. d4 {[%emt 0:01:08]} Ng6 {[%emt 0:00:47]} 8. Nbd2 {[%emt 0:04:07]} Be7 {[%emt 0:03:24]} 9. Re1 {[%emt 0:01:19]} h6 {[%emt 0:01:08]} 10. Nf1 {[%emt 0:01:07]} Bg5 {[%emt 0:01:45]} 11. Ne3 {[%emt 0:01:46]} Bxe3 {[%emt 0:08:51]} 12. Bxe3 {[%emt 0:00:19]} O-O {[%emt 0:00:48]} 13. h3 {[%emt 0:01:11]} Re8 {[%emt 0:18:33]} 14. Bc2 {[%emt 0:02:47]} Qf6 {[%emt 0:12:26]} 15. dxe5 {[%emt 0:06:08]} Ncxe5 {[%emt 0:01:27]} 16. Nxe5 {[%emt 0:00:13]} Nxe5 {[%emt 0:01:19]} 17. f4 {[%emt 0:02:00]} Nc4 {[%emt 0:04:24]} 18. Bc1 {[%emt 0:02:23]} Qh4 {[%emt 0:00:32]} 19. b3 {[%emt 0:01:42]} Nb6 {[%emt 0:03:02]} 20. Re2 {[%emt 0:09:11]} Bc6 {[%emt 0:05:02]} 21. Bd2 {[%emt 0:01:39]} Nd7 {[%emt 0:06:03]} 22. Qe1 {[%emt 0:02:18]} Qxe1+ {[%emt 0:00:11]} 23. Raxe1 {[%emt 0:00:15]} a5 {[%emt 0:06:56]} 24. c4 {[%emt 0:04:07]} b6 {[%emt 0:03:53]} 25. Bc3 {[%emt 0:01:38]} f6 {[%emt 0:03:28]} 26. g3 {[%emt 0:01:23]} Re7 {[%emt 0:01:52]} 27. a3 {[%emt 0:03:43]} Kf8 {[%emt 0:03:12]} 28. Kf2 {[%emt 0:00:24]} Rae8 {[%emt 0:03:52]} 29. Re3 {[%emt 0:06:43]} Nc5 {[%emt 0:03:41]} 30. e5 {[%emt 0:00:21]} fxe5 {[%emt 0:03:54]} 31. fxe5 {[%emt 0:01:57]} dxe5 {[%emt 0:00:36]} 32. Bxe5 {[%emt 0:06:28]} Be4 {[%emt 0:01:33]} 33. b4 {[%emt 0:01:52]} axb4 {[%emt 0:01:36]} 34. axb4 {[%emt 0:00:06]} Nd7 {[%emt 0:00:35]} 35. Bxc7 {[%emt 0:00:45]} Bxc2 {[%emt 0:00:28]} 36. Rxe7 {[%emt 0:01:05]} Rxe7 {[%emt 0:00:07]} 37. Bd6 {[%emt 0:00:06]} Bf5 {[%emt 0:00:20]} 38. g4 {[%emt 0:02:52]} Bd3 {[%emt 0:00:52]} 39. Rxe7 {[%emt 0:00:14]} Nf6 {[%emt 0:00:12]} 40. Re3+ {[%emt 0:00:08]} 1-0

[Event "Ceske Budejovice Open-A 2019"]
[Site "Ceske Budejovice"]
[Date "2019.07.03"]
[Round "5.6"]
[White "Vltavsky, Vladimir"]
[Black "Plischki, Sebastian"]
[Result "1/2-1/2"]
[ECO "A04"]
[WhiteElo "2179"]
[BlackElo "2420"]
[Annotator "NA"]
[PlyCount "113"]
[EventDate "2019.07.02"]
[EventCountry "CZE"]
[SourceTitle "playchess.com"]
[Source "ChessBase"]
[SourceQuality "1"]
[TimeControl "5400+30"]

1. Nf3 {[%emt 0:00:40]} c5 {[%emt 0:00:00]} 2. b3 {[%emt 0:00:55]} d6 {[%emt 0:00:30]} 3. Bb2 {[%emt 0:00:10]} e5 {[%emt 0:00:20]} 4. e4 {[%emt 0:01:25]} Nf6 {[%emt 0:00:21]} 5. d3 {[%emt 0:01:09]} Nc6 {[%emt 0:00:25]} 6. h3 {[%emt 0:01:04]} g6 {[%emt 0:00:40]} 7. g3 {[%emt 0:00:22]} Bg7 {[%emt 0:00:12]} 8. Bg2 {[%emt 0:00:04]} O-O {[%emt 0:00:12]} 9. O-O {[%emt 0:00:03]} Re8 {[%emt 0:03:57]} 10. c4 {[%emt 0:07:17]} a6 {[%emt 0:01:19]} 11. Nc3 {[%emt 0:00:34]} Rb8 {[%emt 0:00:13]} 12. a4 {[%emt 0:09:41]} Bd7 {[%emt 0:01:23]} 13. Bc1 {[%emt 0:02:46]} h6 {[%emt 0:01:36]} 14. Bd2 {[%emt 0:00:50]} Kh7 {[%emt 0:04:33]} 15. Ne1 {[%emt 0:03:17]} Nd4 {[%emt 0:07:34]} 16. Ne2 {[%emt 0:03:00]} Nxe2+ {[%emt 0:06:13]} 17. Qxe2 {[%emt 0:00:14]} b5 {[%emt 0:00:09]} 18. axb5 {[%emt 0:00:28]} axb5 {[%emt 0:00:06]} 19. Nc2 {[%emt 0:03:45]} Qb6 {[%emt 0:04:00]} 20. Bc3 {[%emt 0:03:36]} Ra8 {[%emt 0:02:13]} 21. Rfb1 {[%emt 0:04:06]} Reb8 {[%emt 0:03:51]} 22. Qd1 {[%emt 0:03:43]} Bc6 {[%emt 0:05:33]} 23. Rxa8 {[%emt 0:04:07]} Rxa8 {[%emt 0:00:18]} 24. Ra1 {[%emt 0:01:55]} bxc4 {[%emt 0:02:57]} 25. Rxa8 {[%emt 0:01:26]} Bxa8 {[%emt 0:00:14]} 26. bxc4 {[%emt 0:00:05]} Qb3 {[%emt 0:01:30]} 27. Ba5 {[%emt 0:01:49]} Qa2 {[%emt 0:04:06]} 28. Qd2 {[%emt 0:04:36]} h5 {[%emt 0:03:36]} 29. Ne3 {[%emt 0:01:27]} Qxd2 {[%emt 0:05:25]} 30. Bxd2 {[%emt 0:00:09]} Bh6 {[%emt 0:00:09]} 31. Kf1 {[%emt 0:02:25]} h4 {[%emt 0:01:59]} 32. g4 {[%emt 0:04:10]} Ne8 {[%emt 0:02:33]} 33. Ba5 {[%emt 0:00:40]} Bg5 {[%emt 0:03:56]} 34. Nd5 {[%emt 0:01:22]} Bxd5 {[%emt 0:01:55]} 35. cxd5 {[%emt 0:00:07]} Kg7 {[%emt 0:01:30]} 36. Bf3 {[%emt 0:00:34]} Kf8 {[%emt 0:02:14]} 37. Ke1 {[%emt 0:03:25]} Ke7 {[%emt 0:01:52]} 38. Kd1 {[%emt 0:01:20]} Kd7 {[%emt 0:01:50]} 39. Kc2 {[%emt 0:01:23]} Nc7 {[%emt 0:01:17]} 40. Bxc7 {[%emt 0:00:49]} Kxc7 {[%emt 0:00:06]} 41. Kc3 {[%emt 0:01:09]} Kd7 {[%emt 0:03:54]} 42. Bd1 {[%emt 0:00:16]} Ke7 {[%emt 0:01:56]} 43. Ba4 {[%emt 0:00:22]} Bf4 {[%emt 0:00:32]} 44. Kc2 {[%emt 0:00:25]} Bg3 {[%emt 0:01:32]} 45. f3 {[%emt 0:02:34]} Kf6 {[%emt 0:03:34]} 46. Kd2 {[%emt 0:00:20]} Kg5 {[%emt 0:00:38]} 47. Ke2 {[%emt 0:00:26]} Bf4 {[%emt 0:00:31]} 48. Be8 {[%emt 0:05:45]} f6 {[%emt 0:00:06]} 49. Kf2 {[%emt 0:01:02]} Bc1 {[%emt 0:00:12]} 50. Bb5 {[%emt 0:00:17]} Kf4 {[%emt 0:02:05]} 51. Ba6 {[%emt 0:00:21]} Be3+ {[%emt 0:00:58]} 52. Kg2 {[%emt 0:00:09]} Bd4 {[%emt 0:00:33]} 53. Bb5 {[%emt 0:00:42]} f5 {[%emt 0:01:28]} 54. gxf5 {[%emt 0:01:21]} gxf5 {[%emt 0:00:07]} 55. Ba6 {[%emt 0:00:26]} fxe4 {[%emt 0:01:09]} 56. fxe4 {[%emt 0:00:09]} Ke3 {[%emt 0:00:45]} 57. Bb5 1/2-1/2

[Event "Ceske Budejovice Open-A 2019"]
[Site "Ceske Budejovice"]
[Date "2019.07.03"]
[Round "5.7"]
[White "Placer, Sebastian"]
[Black "Sergeev, Vladimir"]
[Result "0-1"]
[ECO "B28"]
[WhiteElo "2040"]
[BlackElo "2415"]
[Annotator "NA"]
[PlyCount "128"]
[EventDate "2019.07.02"]
[EventCountry "CZE"]
[SourceTitle "playchess.com"]
[Source "ChessBase"]
[SourceQuality "1"]
[TimeControl "5400+30"]

1. e4 {[%emt 0:00:00]} c5 {[%emt 0:02:30]} 2. Nf3 {[%emt 0:00:00]} a6 {[%emt 0:00:10]} 3. c3 {[%emt 0:00:24]} d5 {[%emt 0:00:17]} 4. exd5 {[%emt 0:00:09]} Qxd5 {[%emt 0:00:06]} 5. d4 {[%emt 0:00:09]} Nf6 {[%emt 0:00:10]} 6. Be2 {[%emt 0:00:30]} e6 {[%emt 0:00:31]} 7. O-O {[%emt 0:00:17]} cxd4 {[%emt 0:00:19]} 8. Qxd4 {[%emt 0:01:34]} Nc6 {[%emt 0:00:12]} 9. Qxd5 {[%emt 0:01:56]} Nxd5 {[%emt 0:00:07]} 10. Rd1 {[%emt 0:00:25]} g6 {[%emt 0:07:16]} 11. Nbd2 {[%emt 0:00:51]} Bg7 {[%emt 0:00:21]} 12. Nc4 {[%emt 0:01:05]} b5 {[%emt 0:02:05]} 13. Ne3 {[%emt 0:06:56]} Nb6 {[%emt 0:02:32]} 14. Nc2 {[%emt 0:01:53]} Bb7 {[%emt 0:00:42]} 15. Be3 {[%emt 0:03:31]} Na4 {[%emt 0:05:24]} 16. Rab1 {[%emt 0:03:05]} Ke7 {[%emt 0:15:00]} 17. Ncd4 {[%emt 0:03:22]} Rhc8 {[%emt 0:01:40]} 18. Nxc6+ {[%emt 0:04:22]} Bxc6 {[%emt 0:00:19]} 19. Bd4 {[%emt 0:13:14]} Bxd4 {[%emt 0:01:32]} 20. Nxd4 {[%emt 0:01:00]} Be4 {[%emt 0:00:15]} 21. Bd3 {[%emt 0:00:38]} Bd5 {[%emt 0:00:18]} 22. Nb3 {[%emt 0:04:53]} Ra7 {[%emt 0:03:57]} 23. Re1 {[%emt 0:15:21]} Rd7 {[%emt 0:02:12]} 24. Bc2 {[%emt 0:15:07]} Rd6 {[%emt 0:11:48]} 25. Nd4 {[%emt 0:03:40]} Nb6 {[%emt 0:02:03]} 26. a3 {[%emt 0:01:56]} Kf6 {[%emt 0:03:43]} 27. f4 {[%emt 0:01:15]} h6 {[%emt 0:00:32]} 28. Be4 {[%emt 0:01:38]} Bxe4 {[%emt 0:01:09]} 29. Rxe4 {[%emt 0:00:06]} Nc4 {[%emt 0:00:26]} 30. Re2 {[%emt 0:00:30]} Rc5 {[%emt 0:00:34]} 31. Rbe1 {[%emt 0:02:00]} g5 {[%emt 0:02:12]} 32. g3 {[%emt 0:01:21]} Nb6 {[%emt 0:03:56]} 33. Re5 {[%emt 0:02:30]} Rc8 {[%emt 0:07:38]} 34. Kf2 {[%emt 0:02:33]} Nc4 {[%emt 0:03:50]} 35. R5e2 {[%emt 0:00:06]} Rb8 {[%emt 0:03:12]} 36. Nf3 {[%emt 0:04:27]} Rd5 {[%emt 0:02:50]} 37. Ne5 {[%emt 0:02:02]} Rb6 {[%emt 0:06:34]} 38. Kf3 {[%emt 0:01:48]} a5 {[%emt 0:01:19]} 39. Kf2 {[%emt 0:00:51]} Kg7 {[%emt 0:03:49]} 40. Kf3 {[%emt 0:00:52]} Rdd6 {[%emt 0:03:18]} 41. Kf2 {[%emt 0:00:00]} f6 {[%emt 0:00:00]} 42. Nxc4 {[%emt 0:00:00]} bxc4 {[%emt 0:00:00]} 43. Rc1 {[%emt 0:00:00]} Kg6 {[%emt 0:00:00]} 44. Rcc2 {[%emt 0:00:00]} gxf4 {[%emt 0:00:00]} 45. gxf4 {[%emt 0:00:00]} Kf5 {[%emt 0:00:00]} 46. Kf3 {[%emt 0:00:00]} Rd3+ {[%emt 0:00:00]} 47. Re3 {[%emt 0:00:00]} Rxe3+ {[%emt 0:00:00]} 48. Kxe3 {[%emt 0:00:00]} Rd6 {[%emt 0:00:00]} 49. Rg2 {[%emt 0:00:39]} h5 {[%emt 0:00:00]} 50. Rf2 {[%emt 0:01:19]} Rd3+ {[%emt 0:00:00]} 51. Ke2 {[%emt 0:00:01]} a4 {[%emt 0:00:00]} 52. Rf1 {[%emt 0:01:15]} Ke4 {[%emt 0:00:00]} 53. Rf2 {[%emt 0:01:12]} h4 {[%emt 0:00:00]} 54. Rf1 {[%emt 0:00:45]} Re3+ {[%emt 0:00:00]} 55. Kd2 {[%emt 0:00:09]} Rf3 {[%emt 0:00:00]} 56. Re1+ {[%emt 0:00:21]} Kf5 {[%emt 0:00:00]} 57. Re2 {[%emt 0:00:11]} Rxf4 {[%emt 0:00:00]} 58. Rg2 {[%emt 0:00:12]} h3 {[%emt 0:00:00]} 59. Re2 {[%emt 0:00:04]} e5 {[%emt 0:00:00]} 60. Kd1 {[%emt 0:00:10]} Rf1+ {[%emt 0:00:00]} 61. Kd2 {[%emt 0:00:06]} Kf4 {[%emt 0:00:00]} 62. Kc2 {[%emt 0:00:36]} e4 {[%emt 0:00:00]} 63. Kd2 {[%emt 0:00:06]} f5 {[%emt 0:00:00]} 64. Kc2 {[%emt 0:00:06]} e3 {[%emt 0:00:00]} 0-1

[Event "Ceske Budejovice Open-A 2019"]
[Site "Ceske Budejovice"]
[Date "2019.07.03"]
[Round "5.8"]
[White "Karasek, Lukas"]
[Black "Steiner, Bruno"]
[Result "1-0"]
[ECO "C45"]
[WhiteElo "2278"]
[BlackElo "2179"]
[Annotator "NA"]
[PlyCount "65"]
[EventDate "2019.07.02"]
[EventCountry "CZE"]
[SourceTitle "playchess.com"]
[Source "ChessBase"]
[SourceQuality "1"]
[TimeControl "5400+30"]

1. e4 {[%emt 0:00:17]} e5 {[%emt 0:26:39]} 2. Nf3 {[%emt 0:00:47]} Nc6 {[%emt 0:00:48]} 3. d4 {[%emt 0:00:14]} exd4 {[%emt 0:00:05]} 4. Nxd4 {[%emt 0:00:04]} Nf6 {[%emt 0:00:08]} 5. Nxc6 {[%emt 0:00:26]} bxc6 {[%emt 0:00:25]} 6. e5 {[%emt 0:00:18]} Qe7 {[%emt 0:00:12]} 7. Qe2 {[%emt 0:00:04]} Nd5 {[%emt 0:00:06]} 8. c4 {[%emt 0:00:06]} Ba6 {[%emt 0:00:06]} 9. b3 {[%emt 0:00:13]} Nb6 {[%emt 0:01:33]} 10. Nd2 {[%emt 0:18:39]} O-O-O {[%emt 0:23:30]} 11. Bb2 {[%emt 0:00:52]} Re8 {[%emt 0:00:59]} 12. O-O-O {[%emt 0:13:43]} f6 {[%emt 0:06:19]} 13. f4 {[%emt 0:24:39]} fxe5 {[%emt 0:10:58]} 14. Qxe5 {[%emt 0:02:01]} Qf7 {[%emt 0:02:42]} 15. Qd4 {[%emt 0:00:09]} c5 {[%emt 0:00:33]} 16. Qf2 {[%emt 0:00:29]} Bb7 {[%emt 0:00:06]} 17. Bd3 {[%emt 0:00:46]} d5 {[%emt 0:02:16]} 18. Rhe1 {[%emt 0:05:54]} Rxe1 {[%emt 0:05:38]} 19. Rxe1 {[%emt 0:00:05]} d4 {[%emt 0:00:10]} 20. Ne4 {[%emt 0:01:02]} Bd6 {[%emt 0:00:31]} 21. g3 {[%emt 0:00:09]} Nd7 {[%emt 0:00:08]} 22. Ng5 {[%emt 0:02:19]} Qf6 {[%emt 0:02:00]} 23. Re6 {[%emt 0:00:48]} Ne5 {[%emt 0:03:57]} 24. Bb1 {[%emt 0:05:36]} Qf8 {[%emt 0:01:44]} 25. Qe2 {[%emt 0:05:31]} Ng6 {[%emt 0:01:10]} 26. Nxh7 {[%emt 0:00:24]} Nxf4 {[%emt 0:00:37]} 27. Qg4 {[%emt 0:00:43]} Nxe6 {[%emt 0:02:47]} 28. Qxe6+ {[%emt 0:01:48]} Kd8 {[%emt 0:03:03]} 29. Nxf8 {[%emt 0:00:33]} Rxf8 {[%emt 0:00:57]} 30. Bf5 {[%emt 0:00:27]} Bc6 {[%emt 0:00:46]} 31. b4 {[%emt 0:01:58]} Re8 {[%emt 0:01:02]} 32. Qc8+ {[%emt 0:00:06]} Ke7 {[%emt 0:00:03]} 33. Qa6 {[%emt 0:00:10]} 1-0

[Event "Ceske Budejovice Open-A 2019"]
[Site "Ceske Budejovice"]
[Date "2019.07.03"]
[Round "5.9"]
[White "Nejdl, Eduard"]
[Black "Schmid, Thomas"]
[Result "1/2-1/2"]
[ECO "B52"]
[WhiteElo "1995"]
[BlackElo "2201"]
[Annotator "NA"]
[PlyCount "55"]
[EventDate "2019.07.02"]
[EventCountry "CZE"]
[SourceTitle "playchess.com"]
[Source "ChessBase"]
[SourceQuality "1"]
[TimeControl "5400+30"]

1. e4 {[%emt 0:00:31]} c5 {[%emt 0:00:00]} 2. Nf3 {[%emt 0:00:08]} d6 {[%emt 0:00:00]} 3. Bb5+ {[%emt 0:00:08]} Bd7 {[%emt 0:00:00]} 4. a4 {[%emt 0:00:08]} Nc6 {[%emt 0:00:00]} 5. O-O {[%emt 0:00:31]} Nf6 {[%emt 0:00:14]} 6. Re1 {[%emt 0:00:27]} e6 {[%emt 0:00:27]} 7. c3 {[%emt 0:02:47]} a6 {[%emt 0:00:16]} 8. Bf1 {[%emt 0:02:13]} Be7 {[%emt 0:00:15]} 9. d4 {[%emt 0:00:17]} cxd4 {[%emt 0:00:05]} 10. cxd4 {[%emt 0:00:10]} d5 {[%emt 0:00:04]} 11. e5 {[%emt 0:00:19]} Ne4 {[%emt 0:00:06]} 12. Bd3 {[%emt 0:00:43]} f5 {[%emt 0:17:39]} 13. exf6 {[%emt 0:02:02]} Nxf6 {[%emt 0:00:07]} 14. Nc3 {[%emt 0:01:26]} O-O {[%emt 0:00:42]} 15. Bg5 {[%emt 0:03:42]} Rc8 {[%emt 0:10:13]} 16. Qb1 {[%emt 0:06:06]} h6 {[%emt 0:02:39]} 17. Bh4 {[%emt 0:05:04]} Nh5 {[%emt 0:18:10]} 18. Bxe7 {[%emt 0:02:12]} Nxe7 {[%emt 0:01:04]} 19. Ne5 {[%emt 0:01:58]} Nf6 {[%emt 0:08:25]} 20. Qd1 {[%emt 0:02:58]} Re8 {[%emt 0:17:47]} 21. Bb1 {[%emt 0:09:49]} Nc6 {[%emt 0:14:01]} 22. Qd3 {[%emt 0:01:48]} Re7 {[%emt 0:00:40]} 23. a5 {[%emt 0:05:29]} Be8 {[%emt 0:01:32]} 24. Nxc6 {[%emt 0:04:50]} Rxc6 {[%emt 0:00:45]} 25. Bc2 Qd6 {[%emt 0:01:34]} 26. Re3 {[%emt 0:09:58]} Bf7 {[%emt 0:01:22]} 27. Rae1 {[%emt 0:03:21]} Kf8 {[%emt 0:02:48]} 28. Ba4 {[%emt 0:05:48]} 1/2-1/2

[Event "Ceske Budejovice Open-A 2019"]
[Site "Ceske Budejovice"]
[Date "2019.07.03"]
[Round "5.10"]
[White "Marsalek, Zdenek"]
[Black "Steiner, Juraj"]
[Result "1-0"]
[ECO "A46"]
[WhiteElo "2259"]
[BlackElo "1896"]
[Annotator "NA"]
[PlyCount "49"]
[EventDate "2019.07.02"]
[EventCountry "CZE"]
[SourceTitle "playchess.com"]
[Source "ChessBase"]
[SourceQuality "1"]
[TimeControl "5400+30"]

1. d4 {[%emt 0:00:00]} Nf6 {[%emt 0:03:00]} 2. Nf3 {[%emt 0:00:00]} e6 {[%emt 0:00:28]} 3. g3 {[%emt 0:00:18]} c5 {[%emt 0:00:54]} 4. Bg2 {[%emt 0:00:12]} cxd4 {[%emt 0:01:47]} 5. O-O {[%emt 0:00:12]} Nc6 {[%emt 0:01:38]} 6. Nxd4 {[%emt 0:00:10]} Be7 {[%emt 0:02:00]} 7. c4 {[%emt 0:00:46]} O-O {[%emt 0:00:32]} 8. Nc3 {[%emt 0:00:27]} a6 {[%emt 0:00:09]} 9. h3 {[%emt 0:01:48]} Qc7 {[%emt 0:06:38]} 10. Be3 {[%emt 0:02:27]} Ne5 {[%emt 0:01:55]} 11. b3 {[%emt 0:02:06]} Rb8 {[%emt 0:02:29]} 12. Rc1 {[%emt 0:01:05]} d6 {[%emt 0:01:10]} 13. Qd2 {[%emt 0:02:41]} Bd7 {[%emt 0:01:44]} 14. Rfd1 {[%emt 0:01:09]} Rfd8 {[%emt 0:00:27]} 15. f4 {[%emt 0:06:50]} Nc6 {[%emt 0:01:30]} 16. Nd5 {[%emt 0:00:42]} exd5 {[%emt 0:03:45]} 17. cxd5 {[%emt 0:00:10]} Bxh3 {[%emt 0:03:38]} 18. Bxh3 {[%emt 0:11:57]} Nxd5 {[%emt 0:02:07]} 19. Nxc6 {[%emt 0:00:09]} Nxe3 {[%emt 0:00:22]} 20. Nxb8 {[%emt 0:00:09]} Qb6 {[%emt 0:05:00]} 21. Qd4 {[%emt 0:00:15]} Qxd4 {[%emt 0:01:03]} 22. Rxd4 {[%emt 0:00:52]} Bf6 {[%emt 0:00:43]} 23. Rd3 {[%emt 0:01:18]} Rxb8 {[%emt 0:00:26]} 24. Kf2 {[%emt 0:01:16]} Re8 {[%emt 0:00:09]} 25. Kf3 {[%emt 0:00:37]} 1-0